bitfinex/quotes_SOLUSD_20250708
["timestamp","ask_amount","ask_price","bid_price","bid_amount"]
[1751985958245,44.93034094,151.32,151.29,26.0]
[1751985958725,44.93034094,151.32,151.28,5.87629297]
[1751985959229,44.93034094,151.32,151.27,18.64964886]
[1751985959432,44.93034094,151.32,151.29,5.87629297]
[1751985959754,44.93034094,151.32,151.27,25.26034496]
[1751985959755,44.93034094,151.32,151.28,5.87629297]
[1751985960158,16.66663391,151.32,151.28,5.87629297]
[1751985960380,17.39892429,151.32,151.27,26.0]
[1751985960557,5.87629297,151.31,151.26,12.48724853]
[1751985960750,5.87629297,151.31,151.26,6.61095556]
[1751985960966,5.87629297,151.3,151.26,6.61095556]
[1751985961147,5.87629297,151.3,151.25,38.48773461]
[1751985961460,5.87629297,151.29,151.25,5.87629297]
[1751985961651,5.87629297,151.31,151.27,5.87629297]
[1751985961962,5.87629297,151.3,151.28,0.03]
[1751985962163,17.39893415,151.32,151.28,0.03]
[1751985962461,5.87629297,151.29,151.28,0.03]
[1751985963263,12.48611516,151.29,151.28,0.03]
[1751985963843,18.36240813,151.29,151.28,0.03]
[1751985964250,12.48611516,151.29,151.28,0.03]
[1751985964770,18.36240813,151.29,151.28,0.03]
[1751985965270,26.7,151.28,151.18,1.6178]
[1751985965468,5.87629297,151.23,151.19,5.87629297]
[1751985965656,5.87629297,151.24,151.19,5.87629297]
[1751985966363,5.87629297,151.24,151.19,31.87629297]
[1751985966564,5.87629297,151.23,151.18,12.49064755]
[1751985966762,5.87629297,151.23,151.19,31.87629297]
[1751985967065,5.87629297,151.23,151.19,38.49040772]
[1751985967389,5.87629297,151.24,151.19,38.49040772]
[1751985967588,5.87629297,151.22,151.18,6.61433571]
[1751985968472,32.61141237,151.26,151.18,12.49062868]
[1751985968673,33.86,151.27,151.2,5.87629297]
[1751985968850,5.87629297,151.25,151.2,12.49004958]
[1751985969269,40.47077401,151.27,151.21,5.87629297]
[1751985969452,33.86,151.27,151.23,5.87629297]
[1751985969968,39.73629297,151.27,151.23,5.87629297]
[1751985970466,5.87629297,151.25,151.2,6.61375661]
[1751985970646,34.26,151.26,151.17,6.61506912]
[1751985970847,5.87629297,151.21,151.17,6.61506912]
[1751985971155,5.87629297,151.21,151.17,12.49136209]
[1751985972051,5.87629297,151.21,151.17,5.87629297]
[1751985972252,5.87629297,151.22,151.16,32.61532884]
[1751985972453,5.87629297,151.22,151.17,5.87629297]
[1751985972949,8.17453577,151.25,151.18,5.87629297]
[1751985973163,5.87629297,151.24,151.2,5.87629297]
[1751985973766,33.31085671,151.27,151.21,5.87629297]
[1751985974074,170.75021737,151.31,151.21,5.87629297]
[1751985974075,5.87629297,151.35,151.29,26.0]
[1751985974248,5.87629297,151.35,151.3,26.0]
[1751985974449,5.87629297,151.35,151.31,5.87629297]
[1751985974450,6.60737018,151.35,151.31,5.87629297]
[1751985974658,6.60736593,151.35,151.3,26.0]
[1751985974868,5.87629297,151.35,151.31,5.87629297]
[1751985975064,33.30690011,151.36,151.31,5.87629297]
[1751985975260,32.57629297,151.36,151.31,5.87629297]
[1751985975474,5.87629297,151.35,151.31,5.87629297]
[1751985975774,5.87629297,151.34,151.3,31.87629297]
[1751985975981,16.66663391,151.32,151.27,38.48698863]
[1751985976665,10.79034094,151.32,151.27,38.48698863]
[1751985976866,19.60719145,151.32,151.27,41.42754617]
[1751985977067,26.21573184,151.32,151.27,41.42754617]
[1751985977581,19.60719145,151.32,151.28,8.81685051]
[1751985978191,10.79034094,151.32,151.28,15.42702354]
[1751985978489,26.2157981,151.32,151.27,6.61052781]
[1751985978670,8.81685051,151.28,151.23,6.2703]
[1751985978857,17.39894759,151.32,151.2,6.61375661]
[1751985978858,8.81685051,151.26,151.2,6.61375661]
[1751985979064,8.81685051,151.25,151.21,8.81685051]
[1751985979289,54.2183,151.31,151.21,8.81685051]
[1751985979478,8.81685051,151.27,151.22,8.81685051]
[1751985979658,8.81685051,151.26,151.22,8.81685051]
[1751985980276,6.61111333,151.27,151.21,15.43002318]
[1751985980463,8.81685051,151.25,151.21,15.43002318]
[1751985980983,8.81685051,151.25,151.21,6.61317267]
[1751985981183,6.61111333,151.27,151.2,41.43043596]
[1751985981184,8.81685051,151.24,151.2,41.43043596]
[1751985981365,8.81685051,151.24,151.2,15.43043596]
[1751985981775,8.81685051,151.25,151.2,6.61358545]
[1751985981975,8.81685051,151.25,151.2,15.43043596]
[1751985982189,8.81685051,151.23,151.19,7.16]
[1751985982492,8.81685051,151.21,151.16,15.43235725]
[1751985982660,8.81685051,151.2,151.16,15.43235725]
[1751985982860,8.81685051,151.2,151.16,6.61550674]
[1751985983056,8.81685051,151.2,151.15,8.81685051]
[1751985983277,8.81685051,151.21,151.16,8.81685051]
[1751985983480,41.03204126,151.24,151.16,8.81685051]
[1751985983668,8.81685051,151.21,151.16,8.81685051]
[1751985983869,41.03204126,151.24,151.14,49.15733756]
[1751985983870,41.03204126,151.24,151.18,8.81685051]
[1751985984064,8.81685051,151.23,151.19,15.43103318]
[1751985984683,8.81685051,151.27,151.22,8.81685051]
[1751985984884,33.31060232,151.28,151.19,6.61418267]
[1751985984885,8.81685051,151.25,151.21,8.81685051]
[1751985985279,8.81685051,151.25,151.2,8.81685051]
[1751985985788,8.81685051,151.21,151.18,6.61448801]
[1751985985992,8.81685051,151.21,151.16,16.56792478]
[1751985985993,26.0,151.26,151.16,6.64516501]
[1751985986293,8.81685051,151.2,151.16,8.84685051]
[1751985986467,76.98789231,151.26,151.16,8.84685051]
[1751985986468,8.81685051,151.21,151.16,8.84685051]
[1751985986782,8.81685051,151.21,151.17,8.81685051]
[1751985986983,8.81685051,151.22,151.17,8.81685051]
[1751985987880,8.81685051,151.22,151.16,0.03]
[1751985988099,8.81685051,151.22,151.18,8.81685051]
[1751985988866,15.42936161,151.23,151.18,15.43145968]
[1751985989064,8.81685051,151.23,151.19,8.81685051]
[1751985989264,42.12856945,151.25,151.2,8.81685051]
[1751985989674,8.81685051,151.24,151.2,8.81685051]
[1751985990163,8.81685051,151.24,151.19,15.4308551]
[1751985990788,15.42886476,151.24,151.19,15.4308551]
[1751985991159,8.81685051,151.23,151.19,15.4308551]
[1751985991365,8.81685051,151.24,151.19,15.4308551]
[1751985991565,33.31164981,151.25,151.2,8.81685051]
[1751985991566,35.51685051,151.25,151.2,8.81685051]
[1751985991785,26.7,151.25,151.22,8.81685051]
[1751985992175,26.7,151.25,151.19,29.26178974]
[1751985992176,26.7,151.25,151.23,15.42927591]
[1751985992378,24.18114094,151.32,151.24,8.81685051]
[1751985992576,35.51685051,151.31,151.27,8.81685051]
[1751985993071,8.81685051,151.31,151.27,8.81685051]
[1751985993268,8.81685051,151.31,151.26,8.81685051]
[1751985993679,8.81685051,151.31,151.27,8.81685051]
[1751985994495,8.81685051,151.3,151.26,8.81685051]
[1751985994695,24.61900378,151.32,151.26,8.81685051]
[1751985994873,8.81685051,151.31,151.27,8.81685051]
[1751985996100,24.61900378,151.32,151.27,8.81685051]
[1751985996285,8.81685051,151.3,151.25,8.81685051]
[1751985996485,26.82719145,151.32,151.27,8.81685051]
[1751985996780,26.82719145,151.32,151.28,8.81685051]
[1751985996990,26.57833162,151.31,151.28,8.81685051]
[1751985997386,26.57833162,151.31,151.24,41.79167477]
[1751985997596,26.57833162,151.31,151.29,8.81685051]
[1751985997797,26.57833162,151.31,151.24,41.79167477]
[1751985997977,26.57833162,151.31,151.28,8.81685051]
[1751985998181,42.00413135,151.31,151.27,8.81685051]
[1751985999305,26.57833162,151.31,151.24,41.79167477]
[1751985999497,26.57833162,151.31,151.28,8.81685051]
[1751985999991,35.39518213,151.31,151.27,8.81685051]
[1751986000700,42.00423396,151.31,151.27,8.81685051]
[1751986000891,35.39518213,151.31,151.27,8.81685051]
[1751986001686,35.39518213,151.31,151.26,6.61075404]
[1751986001881,35.39518213,151.31,151.26,15.42760455]
[1751986002088,26.57833162,151.31,151.27,15.42753051]
[1751986002279,35.39518213,151.31,151.27,15.42753051]
[1751986002481,26.57833162,151.31,151.28,8.81685051]
[1751986002916,26.57833162,151.31,151.27,6.61068]
[1751986002917,26.57833162,151.31,151.29,8.81685051]
[1751986003122,10.85034094,151.32,151.3,8.81685051]
[1751986003415,10.85034094,151.32,151.31,8.81685051]
[1751986004290,10.85034094,151.32,151.31,15.42579902]
[1751986004890,10.85034094,151.32,151.31,8.81685051]
[1751986006916,10.85034094,151.32,151.31,15.42579902]
[1751986007217,10.85034094,151.32,151.31,34.07544788]
[1751986007519,0.06,151.39,151.35,44.64964886]
[1751986007709,0.06,151.39,151.38,8.81685051]
[1751986007888,0.06,151.39,151.37,8.81685051]
[1751986010705,0.06,151.39,151.38,8.81685051]
[1751986013916,0.06,151.39,151.38,15.42274296]
[1751986014714,0.06,151.39,151.38,34.07239182]
[1751986015421,0.06,151.39,151.38,68.88924233]
[1751986015803,0.06,151.39,151.38,60.07239182]
[1751986016405,0.06,151.39,151.38,51.25554131]
[1751986016617,0.06,151.39,151.38,60.07239182]
[1751986017420,0.06,151.39,151.38,68.88924233]
[1751986018020,1e-08,151.39,151.38,68.88924233]
[1751986018817,1e-08,151.39,151.38,42.88924233]
[1751986019212,1e-08,151.39,151.38,68.43239182]
[1751986019926,1e-08,151.39,151.38,77.24924233]
[1751986020729,1e-08,151.39,151.38,51.25554131]
[1751986020938,1e-08,151.39,151.37,49.7830132]
[1751986021112,1e-08,151.39,151.37,8.81685051]
[1751986021314,1e-08,151.39,151.36,8.81685051]
[1751986022549,1e-08,151.39,151.36,15.42321823]
[1751986023036,1e-08,151.39,151.3,56.84912491]
[1751986023220,8.81685052,151.39,151.34,8.81685051]
[1751986023922,8.81685051,151.38,151.34,8.81685051]
[1751986024122,8.81685051,151.37,151.31,13.22954827]
[1751986024328,8.81685051,151.37,151.32,8.81685051]
[1751986024520,15.42318052,151.37,151.33,8.81685051]
[1751986024722,15.42318052,151.37,151.31,32.60884827]
[1751986024930,8.81685051,151.35,151.31,8.81685051]
[1751986025331,8.81685051,151.36,151.31,8.81685051]
[1751986025838,8.81685051,151.36,151.31,15.42541304]
[1751986026145,8.81685051,151.36,151.32,8.81685051]
[1751986027336,8.81685051,151.37,151.33,8.81685051]
[1751986027935,8.81685051,151.37,151.33,15.42476551]
[1751986028522,8.81685051,151.37,151.34,0.03]
[1751986028857,8.81685051,151.36,151.34,0.03]
[1751986030047,15.42365253,151.36,151.34,0.03]
[1751986030524,8.81685051,151.35,151.34,0.03]
[1751986033038,15.42365253,151.36,151.34,0.03]
[1751986036528,8.81685051,151.36,151.34,0.03]
[1751986037657,15.42362514,151.36,151.34,0.03]
[1751986038232,15.42337413,151.37,151.34,0.03]
[1751986038450,1e-08,151.39,151.34,0.03]
[1751986038700,1e-08,151.39,151.35,8.81685051]
[1751986038843,8.81685052,151.39,151.35,8.81685051]
[1751986039042,8.81685051,151.38,151.34,8.84685051]
[1751986040057,6.60564052,151.39,151.34,8.84685051]
[1751986040260,8.81685051,151.38,151.34,0.03]
[1751986040443,8.81685051,151.38,151.34,15.45448894]
[1751986041048,15.42278486,151.38,151.34,15.45448894]
[1751986041362,8.81685051,151.38,151.34,15.45448894]
[1751986041853,8.81685052,151.39,151.35,8.81685051]
[1751986042059,1e-08,151.39,151.35,8.81685051]
[1751986042246,1e-08,151.39,151.36,8.81685051]
[1751986042558,1e-08,151.39,151.37,8.81685051]
[1751986042935,1e-08,151.39,151.38,8.81685051]
[1751986043140,1e-08,151.39,151.38,31.8691037]
[1751986043347,1e-08,151.39,151.38,50.51875256]
[1751986044436,1e-08,151.39,151.38,57.12464501]
[1751986044936,1e-08,151.39,151.38,60.05643158]
[1751986047440,1e-08,151.39,151.38,68.85732185]
[1751986049853,1e-08,151.39,151.38,75.81491109]
[1751986051544,10.91880958,151.47,151.46,8.80089027]
[1751986052268,10.91880958,151.47,151.46,27.45053913]
[1751986053350,10.91880958,151.47,151.44,34.18]
[1751986053351,10.91880958,151.47,151.45,6.60258199]
[1751986053554,10.91880958,151.47,151.46,8.80089027]
[1751986053865,10.91880958,151.47,151.45,6.60258199]
[1751986054061,10.91880958,151.47,151.46,8.80089027]
[1751986054972,10.91880958,151.47,151.45,8.80089027]
[1751986055173,26.32169321,151.47,151.38,16.66929027]
[1751986055383,15.40333281,151.46,151.42,8.80089027]
[1751986055969,8.80089027,151.44,151.4,8.80089027]
[1751986057564,8.80089027,151.44,151.4,15.40589572]
[1751986058453,8.80089027,151.44,151.4,6.60500545]
[1751986058679,8.80089027,151.44,151.4,15.40589572]
[1751986059669,8.80089027,151.45,151.41,8.80089027]
[1751986059875,19.71969985,151.47,151.43,8.80089027]
[1751986060191,10.91880958,151.47,151.45,8.80089027]
[1751986061157,10.91880958,151.47,151.43,34.12]
[1751986061377,10.91880958,151.47,151.45,8.80089027]
[1751986061678,8.80089027,151.46,151.41,44.64964886]
[1751986061876,8.80089027,151.46,151.42,8.80089027]
[1751986062895,8.80089027,151.45,151.41,34.80089027]
[1751986064394,8.80089027,151.45,151.41,41.40538542]
[1751986064559,15.40359476,151.46,151.42,8.80089027]
[1751986064963,17.52092527,151.47,151.42,5.86673306]
[1751986065172,23.38765833,151.47,151.42,5.86673306]
[1751986065366,10.91880958,151.47,151.44,5.86673306]
[1751986065755,10.91880958,151.47,151.45,5.86673306]
[1751986065956,0.1,151.47,151.46,5.86673306]
[1751986066165,0.1,151.47,151.46,24.51638192]
[1751986066979,0.1,151.47,151.46,27.44205073]
[1751986067770,0.1,151.47,151.46,68.204454]
[1751986067978,0.1,151.47,151.46,52.80964886]
[1751986068181,0.1,151.47,151.46,34.16]
[1751986068361,0.1,151.47,151.45,8.79240187]
[1751986068894,0.1,151.47,151.44,26.0]
[1751986069190,8.89240187,151.47,151.43,68.20564868]
[1751986069398,15.49442739,151.47,151.43,8.79240187]
[1751986069995,8.89240187,151.47,151.43,15.39610312]
[1751986071996,0.1,151.47,151.43,15.39610312]
[1751986072198,8.89240187,151.47,151.43,15.39610312]
[1751986072502,8.89240187,151.47,151.43,6.60370125]
[1751986072695,0.1,151.47,151.43,15.39610312]
[1751986072903,8.89240187,151.47,151.43,15.39610312]
[1751986073080,15.49442868,151.47,151.43,8.79240187]
[1751986073273,8.89240187,151.47,151.42,15.39639739]
[1751986073601,15.49437663,151.47,151.42,15.39639739]
[1751986073818,0.1,151.47,151.42,15.39639739]
[1751986073975,8.89240187,151.47,151.42,15.39639739]
[1751986074176,8.79240187,151.46,151.42,8.79240187]
[1751986074403,8.79240187,151.45,151.41,6.60444328]
[1751986074608,8.79240187,151.45,151.41,15.39684515]
[1751986075285,8.79240187,151.45,151.4,25.25464559]
[1751986075286,8.79240187,151.44,151.4,25.25464559]
[1751986075608,8.79240187,151.44,151.4,34.04704746]
[1751986076412,8.79240187,151.44,151.4,8.79240187]
[1751986076570,8.79240187,151.44,151.39,32.60526856]
[1751986076571,8.79240187,151.43,151.39,41.39767043]
[1751986077219,8.79240187,151.44,151.4,8.79240187]
[1751986077705,8.79240187,151.44,151.39,32.60526856]
[1751986077892,8.79240187,151.44,151.4,15.39723477]
[1751986078512,8.79240187,151.44,151.4,6.6048329]
[1751986078714,8.79240187,151.44,151.4,15.39723477]
[1751986081427,0.1,151.47,151.43,8.79240187]
[1751986081629,0.1,151.47,151.46,8.79240187]
[1751986082402,0.1,151.47,151.46,27.44205073]
[1751986082794,0.1,151.47,151.46,34.044454]
[1751986083418,0.1,151.47,151.46,15.39480514]
[1751986087906,0.1,151.47,151.46,60.044454]
[1751986088125,0.1,151.47,151.46,34.044454]
[1751986088505,0.1,151.5,151.49,44.64964886]
[1751986088736,0.1,151.5,151.49,87.50205073]
[1751986089100,0.1,151.5,151.49,94.10314651]
[1751986089631,0.1,151.5,151.49,85.31074464]
[1751986089811,0.1,151.5,151.49,94.10314651]
[1751986091015,0.1,151.5,151.49,91.17099319]
[1751986095135,0.1,151.5,151.49,85.31074464]
[1751986095304,0.1,151.5,151.49,91.17099319]
[1751986098609,0.1,151.5,151.49,85.31074464]
[1751986098842,0.1,151.5,151.49,91.17099319]
[1751986099414,0.1,151.5,151.44,16.50817143]
[1751986099726,0.1,151.5,151.47,18.64964886]
[1751986099928,0.1,151.5,151.47,58.52989741]
[1751986100511,0.1,151.5,151.46,12.46263]
[1751986100715,0.1,151.5,151.47,34.02]
[1751986101741,5.86024855,151.49,151.45,26.0]
[1751986101919,5.86024855,151.49,151.46,34.02]
[1751986102435,6.70083657,151.5,151.46,34.02]
[1751986102436,5.96024855,151.5,151.46,39.88024855]
[1751986102947,0.1,151.5,151.46,39.88024855]
[1751986103124,5.96024855,151.5,151.46,39.88024855]
[1751986103320,0.1,151.5,151.48,5.86024855]
[1751986103521,0.1,151.5,151.49,24.50989741]
[1751986103718,0.1,151.5,151.49,31.11099319]
[1751986105235,0.1,151.5,151.49,24.50989741]
[1751986105435,5.96024855,151.5,151.48,34.02]
[1751986105938,0.1,151.5,151.48,34.02]
[1751986106813,0.1,151.5,151.48,40.62152009]
[1751986107043,0.1,151.5,151.49,34.0]
[1751986107440,0.1,151.5,151.49,52.64964886]
[1751986108034,0.1,151.5,151.49,65.11099319]
[1751986109914,0.1,151.5,151.49,66.72909319]
[1751986112528,0.06,151.54,151.5,18.64964886]
[1751986112850,0.06,151.54,151.49,83.23183264]
[1751986112851,0.06,151.54,151.53,24.50989741]
[1751986113059,0.06,151.54,151.53,58.46989741]
[1751986115032,0.06,151.54,151.53,65.06925067]
[1751986120449,0.06,151.54,151.53,31.10925067]
[1751986120651,0.06,151.54,151.53,65.00925067]
[1751986122156,0.06,151.54,151.53,31.10925067]
[1751986122723,0.06,151.54,151.53,25.24900212]
[1751986123247,0.06,151.54,151.53,59.14900212]
[1751986124250,0.06,151.54,151.53,65.00925067]
[1751986124551,0.06,151.54,151.53,52.54964886]
[1751986125354,5.92024855,151.54,151.53,33.9]
[1751986125964,0.06,151.54,151.53,33.9]
[1751986126459,0.06,151.54,151.53,65.00925067]
[1751986132359,0.06,151.54,151.53,59.14900212]
[1751986132661,0.06,151.54,151.53,65.00925067]
[1751986135354,0.06,151.54,151.53,59.14900212]
[1751986135865,5.92024855,151.54,151.51,26.0]
[1751986136174,5.86024855,151.52,151.49,32.37071012]
[1751986136468,5.86024855,151.52,151.5,33.88]
[1751986136651,5.86024855,151.53,151.5,33.88]
[1751986136838,5.86024855,151.53,151.5,33.91]
[1751986137037,5.86024855,151.53,151.5,0.03]
[1751986137346,5.92024855,151.54,151.5,0.03]
[1751986137746,5.92024855,151.54,151.5,5.89024855]
[1751986137947,5.86024855,151.53,151.5,0.03]
[1751986138455,5.86024855,151.51,151.5,0.03]
[1751986138766,5.86024855,151.52,151.5,0.03]
[1751986139225,0.06,151.54,151.5,18.67964886]
[1751986139428,5.92024855,151.54,151.5,24.53989741]
[1751986139637,5.92024855,151.54,151.5,0.03]
[1751986139946,0.06,151.54,151.51,5.86024855]
[1751986140164,0.06,151.54,151.52,5.86024855]
[1751986140469,0.06,151.54,151.52,12.459701]
[1751986142139,0.06,151.54,151.5,18.67964886]
[1751986142449,5.86024855,151.52,151.5,0.03]
[1751986145646,5.86024855,151.51,151.5,0.03]
[1751986146575,10.77097736,151.51,151.5,0.03]
[1751986147665,17.3715242,151.51,151.5,0.03]
[1751986149045,17.3715242,151.51,151.47,0.03]
[1751986149046,33.87208521,151.51,151.47,0.03]
[1751986149248,5.86024855,151.48,151.47,0.03]
[1751986149478,44.6712998,151.48,151.47,0.03]
[1751986149649,51.27283135,151.48,151.47,0.03]
[1751986150475,51.26515335,151.48,151.47,0.03]
[1751986151064,57.30575335,151.48,151.47,1e-08]
[1751986152161,52.4023801,151.48,151.47,1e-08]
[1751986152361,57.30160388,151.48,151.47,1e-08]
[1751986153261,17.36100388,151.48,151.47,1e-08]
[1751986153468,51.26100388,151.48,151.47,1e-08]
[1751986153663,17.35649192,151.48,151.47,1e-08]
[1751986153860,51.25649192,151.48,151.47,1e-08]
[1751986154060,44.65496037,151.48,151.47,1e-08]
[1751986154253,39.76024855,151.48,151.47,1e-08]
[1751986154474,15.24128208,151.5,151.47,1e-08]
[1751986154785,5.86024855,151.48,151.47,1e-08]
[1751986155963,46.3417801,151.48,151.47,1e-08]
[1751986158384,33.88,151.48,151.47,1e-08]
[1751986158680,39.74024855,151.48,151.47,1e-08]
[1751986160083,5.86024855,151.49,151.47,1e-08]
[1751986160382,39.74024855,151.49,151.47,1e-08]
[1751986160564,33.88,151.49,151.47,1e-08]
[1751986160961,39.74024855,151.49,151.47,1e-08]
[1751986161181,5.86024855,151.48,151.47,1e-08]
[1751986161892,7.39434855,151.48,151.47,1e-08]
[1751986163173,13.9958801,151.48,151.47,1e-08]
[1751986164964,16.9373334,151.48,151.47,1e-08]
[1751986167766,49.2832334,151.48,151.47,1e-08]
[1751986170413,58.08493525,151.48,151.47,1e-08]
[1751986172691,6.60153155,151.48,151.47,1e-08]
[1751986172884,15.4032334,151.48,151.47,1e-08]
[1751986173273,7.06,151.5,151.47,1e-08]
[1751986173274,13.66083773,151.5,151.47,1e-08]
[1751986173480,49.76170185,151.5,151.47,1e-08]
[1751986173679,22.46244265,151.5,151.47,1e-08]
[1751986173884,49.76170185,151.5,151.47,1e-08]
[1751986174578,22.46236628,151.5,151.47,1e-08]
[1751986174776,56.38236628,151.5,151.47,1e-08]
[1751986176195,8.80170185,151.49,151.47,1e-08]
[1751986176878,15.4028713,151.49,151.47,1e-08]
[1751986177193,8.80170185,151.48,151.47,1e-08]
[1751986177577,42.70170185,151.48,151.47,1e-08]
[1751986178996,26.6,151.49,151.47,1e-08]
[1751986179200,16.49982398,151.52,151.47,8.80170186]
[1751986179201,35.40170185,151.52,151.47,8.80170186]
[1751986179386,4.89420077,151.51,151.48,8.80170185]
[1751986180488,42.70170185,151.53,151.49,8.80170185]
[1751986180685,4.89860004,151.52,151.49,8.80170185]
[1751986181002,15.40107513,151.53,151.49,8.80170185]
[1751986181204,4.89860004,151.52,151.49,8.80170185]
[1751986181998,4.89860004,151.52,151.48,6.60136006]
[1751986182305,4.89860004,151.52,151.49,8.80170185]
[1751986182500,4.89860004,151.52,151.48,8.80170185]
[1751986182501,20.30019986,151.52,151.48,8.80170185]
[1751986182704,15.40159982,151.52,151.48,18.64964886]
[1751986183003,8.80170185,151.52,151.48,18.64964886]
[1751986183204,15.4016313,151.52,151.48,18.64964886]
[1751986183406,8.80170185,151.52,151.48,18.64964886]
[1751986184293,6.59989688,151.52,151.47,1e-08]
[1751986184490,8.80170185,151.48,151.47,1e-08]
[1751986184695,13.70469997,151.48,151.47,1e-08]
[1751986186486,20.30623152,151.48,151.47,1e-08]
[1751986187003,4.90299812,151.48,151.47,1e-08]
[1751986187392,13.70469997,151.49,151.47,1e-08]
[1751986187581,4.90299812,151.48,151.47,1e-08]
[1751986188488,15.40279908,151.49,151.47,1e-08]
[1751986189805,15.4032334,151.48,151.47,1e-08]
[1751986190986,5.86650748,151.48,151.47,1e-08]
[1751986191192,72.94769617,151.49,151.47,1e-08]
[1751986191397,5.86650748,151.48,151.47,1e-08]
[1751986192785,12.46803903,151.48,151.47,1e-08]
[1751986194598,17.37724534,151.48,151.47,1e-08]
[1751986195413,17.37695051,151.48,151.47,1e-08]
[1751986195793,10.77541896,151.48,151.47,1e-08]
[1751986196684,4.90891148,151.48,151.47,1e-08]
[1751986199715,12.46774966,151.49,151.47,1e-08]
[1751986200196,5.86650748,151.48,151.47,1e-08]
[1751986202396,12.46803903,151.48,151.47,1e-08]
[1751986202992,26.6,151.5,151.47,1e-08]
[1751986203313,33.88,151.52,151.49,5.86650748]
[1751986203494,39.74650748,151.53,151.49,5.86650748]
[1751986203692,10.7778701,151.52,151.47,1e-08]
[1751986204005,4.91136262,151.51,151.47,5.86650749]
[1751986204316,4.91136262,151.5,151.48,5.86650748]
[1751986204497,5.86650748,151.53,151.49,5.86650748]
[1751986204699,4.91136126,151.52,151.51,5.86650748]
[1751986204998,4.91178836,151.52,151.51,5.86650748]
[1751986205199,0.06,151.54,151.48,1.5171]
[1751986205404,4.91021653,151.53,151.51,5.86650748]
[1751986205611,0.06,151.54,151.51,5.86650748]
[1751986206114,0.06,151.54,151.48,7.38360748]
[1751986206115,5.86650748,151.52,151.48,7.38360748]
[1751986206516,5.86650748,151.51,151.48,1.5171]
[1751986207093,5.86650748,151.49,151.47,1e-08]
[1751986208804,8.79699551,151.49,151.47,1e-08]
[1751986209004,15.39809134,151.49,151.47,1e-08]
[1751986209190,8.79699551,151.49,151.47,1e-08]
[1751986209394,4.90922796,151.48,151.47,1e-08]
[1751986210022,26.6,151.53,151.47,8.79699552]
[1751986210209,4.90951495,151.52,151.49,8.79699551]
[1751986210522,4.90951495,151.51,151.49,15.39805915]
[1751986210706,4.90951495,151.5,151.49,8.79699551]
[1751986210915,4.90951495,151.5,151.48,8.79699551]
[1751986211095,8.79699551,151.52,151.47,8.79699552]
[1751986211301,4.91086404,151.51,151.48,8.79699551]
[1751986211514,4.91086404,151.5,151.48,8.79699551]
[1751986211811,8.79699551,151.52,151.47,8.79699552]
[1751986211994,13.70755145,151.51,151.47,8.79699552]
[1751986212201,6.59996593,151.52,151.47,1e-08]
[1751986212202,13.70755145,151.5,151.47,1e-08]
[1751986212410,8.79699551,151.5,151.47,1e-08]
[1751986212614,4.91158065,151.49,151.47,1e-08]
[1751986212817,8.79699551,151.51,151.47,8.79699552]
[1751986213020,4.91172701,151.5,151.47,1e-08]
[1751986213211,4.91172701,151.49,151.47,8.79699552]
[1751986213410,8.79699551,151.51,151.47,8.79699552]
[1751986213615,4.91214773,151.5,151.47,8.79699552]
[1751986213819,4.91214773,151.49,151.47,8.79699552]
[1751986214008,8.79699551,151.51,151.47,15.39883182]
[1751986214325,4.91207868,151.5,151.48,8.79699551]
[1751986214505,69.27699551,151.53,151.48,8.79699551]
[1751986214818,4.91311334,151.52,151.5,8.79699551]
[1751986215124,4.91311334,151.51,151.5,8.79699551]
[1751986215621,4.91311334,151.51,151.49,8.79699551]
[1751986215825,4.91433147,151.5,151.48,12.98838469]
[1751986216030,8.79699551,151.53,151.49,8.79699551]
[1751986216328,4.91490431,151.52,151.5,8.79699551]
[1751986216506,8.85699551,151.54,151.5,8.79699551]
[1751986216507,4.91490431,151.51,151.5,8.79699551]
[1751986219532,4.91490431,151.51,151.5,15.39765557]
[1751986219709,0.06,151.54,151.5,15.39765557]
[1751986220027,4.9158469,151.53,151.5,15.39765557]
[1751986220229,4.9158469,151.52,151.5,15.39765557]
[1751986220432,8.85699551,151.54,151.5,15.39765557]
[1751986220611,4.91497254,151.53,151.51,8.79699551]
[1751986220939,4.91475987,151.52,151.51,8.79699551]
[1751986221123,4.91475987,151.52,151.5,16.99495557]
[1751986221430,8.79699551,151.53,151.5,1.5973]
[1751986221629,4.91376039,151.52,151.5,1.5973]
[1751986221829,8.79699551,151.53,151.5,1.5973]
[1751986222005,4.91376039,151.52,151.5,1.5973]
[1751986222200,8.79699551,151.53,151.5,1.5973]
[1751986222402,6.65892729,151.54,151.48,15.18409551]